Cogmind - Beta 13 @@@ ROGUE MODE // 2024.07.06 @ 21:07:47 Player: CONM Result: Destroyed by D-53 Grenadier with Mini Grenade Launcher Performance ------------- Evolutions (0) 0 Regions Visited (2) 400 Robots Destroyed (8) 40 Value Destroyed (141) 141 Prototype IDs (0) 0 Alien Tech Used (0) 0 Bonus (0) 0 TOTAL SCORE: 581 Bonus ------- None Cogmind --------- Core Integrity 0/250 Matter 218/300 Energy 76/100 System Corruption 0% Temperature Cool (0) Movement Rolling (135) Ox3 Location -10/Mines Parts ------- > --- POWER (1) -------- (None) > --- PROPULSION (2) --- Armored Wheel Armored Wheel > --- UTILITY (2) ------ Huge Storage Unit > --- WEAPON (2) ------- (None) > --- INVENTORY (25) --- Light Nuclear Core Compact Wheel Small Storage Unit Field Recycling Unit (0) Datajack Signal Generator Peak State ------------ > --- POWER ------------ Ion Engine > --- PROPULSION ------- Armored Wheel Armored Wheel > --- UTILITY ---------- Huge Storage Unit Seismic Detector > --- WEAPON ----------- Medium Laser Assault Rifle > --- INVENTORY -------- Light Nuclear Core Light Treads Light Treads Armored Wheel Armored Wheel Small Storage Unit Grenade Launcher Datajack [Rating: 10] Favorites ----------- Power Ion Engine Engine Ion Engine Propulsion Light Treads Treads Light Treads Wheel Armored Wheel Utility Small Storage Unit Device Seismic Detector Storage Small Storage Unit Weapon Assault Rifle Energy Gun EM Pulse Gun Ballistic Gun Assault Rifle Launcher Grenade Launcher Build | -11 -10 -10 ------- Run | Yrd Mat Min Slots Evolved . | . . . Power . | . . . Propulsion . | . . . Utility . | . . . Weapon . | . . . Parts Attached 17 | 8 5 4 Power 1 | 1 . . Engine 1 | 1 . . Core . | . . . Reactor . | . . . Propulsion 6 | 2 2 2 Treads 2 | 2 . . Leg . | . . . Wheel 4 | . 2 2 Hover . | . . . Flight . | . . . Utility 3 | 2 1 . Device 1 | 1 . . Storage 2 | 1 1 . Processor . | . . . Hackware . | . . . Protection . | . . . Artifact . | . . . Weapon 7 | 3 2 2 Energy Gun 3 | 2 1 . Energy Cannon . | . . . Ballistic Gun 2 | 1 . 1 Ballistic Cannon . | . . . Launcher 2 | . 1 1 Special Weapon . | . . . Impact Weapon . | . . . Slashing Weapon . | . . . Piercing Weapon . | . . . Special Melee Weapon . | . . . Unidentified Prototypes . | . . . Parts Lost 8 | . 1 7 Power 1 | . . 1 Propulsion 2 | . . 2 Utility 1 | . . 1 Weapon 4 | . 1 3 Highest Loss Streak 7 | . 1 7 To Critical Strikes . | . . . Average Slot Usage (%) 99 | . 100 95 Engine 14 | . 14 14 Treads 21 | . 26 . Wheel 5 | . 1 26 Device 14 | . 14 14 Storage 14 | . 14 14 Energy Gun 12 | . 13 12 Ballistic Gun 13 | . 14 12 Launcher 1 | . . 2 Naked Turns . | . . . Heaviest Build 91 | 15 90 91 Greatest Support 40 | 40 40 24 Greatest Overweight (x) 7 | 1 3 7 Average Overweight (x) . | . . 3 Largest Inventory Capacity 25 | 8 25 25 Average Capacity 10 | 7 9 25 Most Carried 9 | 4 8 9 Average Carried 5 | 1 6 8 Final Capacity 25 | 8 25 25 Final Carried 8 | 3 8 6 Class Distribution -------------------- 100% | Mutant Dominant Class ---------------- Mutant | -10/Materials Mutant | -10/Mines Resources | -11 -10 -10 ----------- Run | Yrd Mat Min Matter Collected 366 | 219 147 . Remotely . | . . . Salvage Created 225 | 17 186 22 Parts 16 | 4 8 4 Haulers Intercepted . | . . . Recyclers Shooed . | . . . Parts Field Recycled . | . . . Retrieved Matter . | . . . Parts Self-Destructed . | . . . Prevented . | . . . Kills | -11 -10 -10 ------- Run | Yrd Mat Min Combat Hostiles Destroyed 6 | . 5 1 Guns 1 | . 1 . AOE 5 | . 4 1 Classes Destroyed 5 | 1 3 1 Tunneler 2 | 1 . 1 Recycler 1 | . 1 . Swarmer 3 | . 3 . Grunt 2 | . 2 . Assembled 1 | . . 1 Best Kill Streak 3 | 1 3 2 Combat Bots Only 3 | . 3 1 Max Kills in Single Turn 2 | 1 2 1 Gunslinging . | . . . Exploded 2 | . 2 1 Melee . | . . . Uniques/NPCs Destroyed . | . . . Combat | -11 -10 -10 -------- Run | Yrd Mat Min Hostile Shots Fired 42 | . 24 18 Missed 8 | . 7 1 Damage Taken 937 | . 218 719 Core 254 | . 22 232 Absorbed by Shields . | . . . Core Remaining (%) 100 | 100 . . Volleys Fired 16 | 1 10 5 Largest 2 | 2 2 2 Hottest 80 | 60 60 80 Shots Fired 31 | 2 20 9 Gun 23 | 2 16 5 Cannon . | . . . Launcher 8 | . 4 4 Special . | . . . Kinetic 12 | 1 10 1 Thermal 4 | . . 4 Explosive 8 | . 4 4 Electromagnetic 7 | 1 6 . Robot Hit Streak 6 | 1 6 2 Robot Miss Streak 4 | . 4 2 Penetration Max . | . . . Secondary Targets . | . . . Shots Hit Robots 15 | 1 9 5 Core Hits 20 | 1 9 10 Critical Kills . | . . . Critical Parts Destroyed . | . . . Critical Strikes . | . . . Melee Attacks . | . . . Impact . | . . . Slashing . | . . . Piercing . | . . . Sneak Attacks . | . . . Combat Hostiles . | . . . Follow-up Attacks . | . . . Damage Inflicted 656 | 15 436 205 Guns 151 | 15 101 35 Cannons . | . . . Explosions 505 | . 335 170 Melee . | . . . Ramming . | . . . Kinetic 60 | . 49 11 Thermal 118 | . 94 24 Explosive 411 | . 241 170 Electromagnetic 67 | 15 52 . Impact . | . . . Slashing . | . . . Piercing . | . . . Highest Corruption . | . . . Average Corruption . | . . . Corruption Purged . | . . . Corruption Blocked . | . . . Overload Shots . | . . . Overflow Damage 10 | . 10 . Projectiles . | . . . Explosions 10 | . 10 . Melee . | . . . Knockbacks . | . . . Impact . | . . . Kinetic . | . . . Secondary . | . . . Self-Inflicted Damage 74 | . 65 9 Shots 3 | . 2 1 Rammed . | . . . Targets Rammed . | . . . Kicked . | . . . Crushed . | . . . Highest Temperature 56 | . 15 56 Average Temperature 24 | . 12 34 Received Heat Transfer 53 | . 33 20 Siege Activations . | . . . Robots Corrupted . | . . . Combat Hostiles . | . . . Parts Fried . | . . . Impact Corruptions . | . . . Robots Melted . | . . . Combat Hostiles . | . . . Parts Melted . | . . . Heat Transferred 174 | . 100 74 Parts Sabotaged . | . . . Parts Stolen . | . . . Parts Stripped . | . . . Power Chain Reactions 2 | . 2 . Alert | -11 -10 -10 ------- Run | Yrd Mat Min Peak Influence 190 | 5 190 89 Initial 73 | . 3 73 Average 71 | 1 100 70 Maximum Alert Level . | . . . Low Security (%) 100 | 100 100 100 Level 1 . | . . . Level 2 . | . . . Level 3 . | . . . Level 4 . | . . . Level 5 . | . . . High Security . | . . . Max Security . | . . . Squads Dispatched 1 | . 1 . Investigation . | . . . Extermination . | . . . Reinforcement 1 | . 1 . Assault . | . . . Garrison . | . . . Intercept . | . . . Searches Triggered . | . . . Construction Impeded . | . . . Haulers Reinforced . | . . . Active Scanning Responses . | . . . Cargo Convoy Interrupts . | . . . Stealth | -11 -10 -10 --------- Run | Yrd Mat Min Distress Signals 1 | . 1 . Communications Jammed . | . . . Distress Signals . | . . . Times Spotted 22 | . 10 12 Peak Tracking Total 9 | . 5 9 Tactical Retreats 1 | . 1 . Traps | -11 -10 -10 ------- Run | Yrd Mat Min Traps Triggered . | . . . Indirectly . | . . . Trap Hack Attempts . | . . . Triggered . | . . . Disarmed . | . . . Reprogrammed . | . . . Reused . | . . . Traps Extracted . | . . . Installed . | . . . Triggered . | . . . Machines | -11 -10 -10 ---------- Run | Yrd Mat Min Machines Disabled 1 | . 1 . Max in Single Turn 1 | . 1 . Machines Repaired . | . . . Machines Dismantled . | . . . Machines Sabotaged . | . . . Overloaded Fab Kills . | . . . Hacking | -11 -10 -10 --------- Run | Yrd Mat Min Machines Accessed 1 | . 1 . Terminals . | . . . Fabricators . | . . . Repair Stations . | . . . Recycling Units 1 | . 1 . Scanalyzers . | . . . Garrison Access . | . . . Total Hacks 4 | . 4 . Successful 2 | . 2 . Failed 2 | . 2 . Catastrophic . | . . . Database Lockouts . | . . . Manual . | . . . Terminals . | . . . Fabricators . | . . . Repair Stations . | . . . Recycling Units 4 | . 4 . Scanalyzers . | . . . Garrison Access . | . . . Terminal Hacks . | . . . Fabricator Hacks . | . . . Repair Station Hacks . | . . . Recycling Unit Hacks 2 | . 2 . Report Inventory 1 | . 1 . Retrieve Components 1 | . 1 . Scanalyzer . | . . . Garrison Access Hacks . | . . . Unauthorized Hacks . | . . . Terminals . | . . . Fabricators . | . . . Repair Stations . | . . . Recycling Units . | . . . Scanalyzers . | . . . Garrison Access . | . . . Data Cores Recovered . | . . . Used . | . . . Hacking Detections 1 | . 1 . Full Trace Events . | . . . Feedback Events . | . . . Feedback Blocked . | . . . Robot Schematics Acquired . | . . . Robots Built . | . . . Authchips . | . . . Time . | . . . Total Robot Build Rating . | . . . Part Schematics Acquired . | . . . Parts Built . | . . . Authchips . | . . . Time . | . . . Total Part Build Rating . | . . . Parts Repaired . | . . . Time . | . . . Parts Recycled . | . . . Recycled Matter . | . . . Retrieved Matter . | . . . Retrieved Components 2 | . 2 . Parts Scanalyzed . | . . . Part Schematics Acquired . | . . . Parts Damaged . | . . . Bothacking | -11 -10 -10 ------------ Run | Yrd Mat Min Used RIF Installer . | . . . Robots Hacked . | . . . Non-combat . | . . . Combat . | . . . Robot Hacks Applied . | . . . Relay Couplers Released . | . . . Fabnet Peak Effective % . | . . . Robots Rewired . | . . . Allies Hacked . | . . . Hacks Repelled . | . . . Allies | -11 -10 -10 -------- Run | Yrd Mat Min Total Allies . | . . . Largest Group . | . . . Highest-Rated Group . | . . . Highest-Rated Ally . | . . . Total Orders . | . . . Ally Attacks . | . . . Total Damage . | . . . Kills . | . . . Allies Corrupted . | . . . Allies Melted . | . . . Intel | -11 -10 -10 ------- Run | Yrd Mat Min Robot Analysis Total . | . . . Derelict Logs Recovered . | . . . Drone Launches . | . . . Drone Recoveries . | . . . Exploration | -11 -10 -10 ------------- Run | Yrd Mat Min Turns Passed 555 | 143 345 67 Spaces Moved 301 | 79 187 35 Core 5 | 5 . . Treads 247 | 74 173 . Legs . | . . . Wheels 49 | . 14 35 Hover . | . . . Flight . | . . . Fastest Speed 50 | 50 135 135 Average Speed 154 | 155 158 136 Slowest Speed 195 | 160 160 195 Overloaded Moves . | . . . Propulsion Burnouts . | . . . Robots Hopped . | . . . Cave-ins Triggered . | . . . Exploration Rate (%) 16 | 5 29 14 Regions Visited 2 Branch Regions 1 Pre-discovered Areas . | . . . Known Exits Taken . | . . . Unknown Exits Taken 2 | 1 1 . Scrap Searched . | . . . Spaces Dug . | . . . Terrain Destroyed 56 | . 35 21 Melee . | . . . Projectile . | . . . AOE 56 | . 35 21 Terrain Rammed . | . . . Walls Destroyed . | . . . Machines Disabled . | . . . Actions | -11 -10 -10 --------- Run | Yrd Mat Min Total 360 | 95 220 45 Wait 3 | . 3 . Move 299 | 78 186 35 Hop . | . . . Pick Up 17 | 5 11 1 Fast Attach 8 | 8 . . Attach 4 | . 1 3 Detach . | . . . Swap 5 | . 4 1 Drop 8 | 3 5 . Fire 16 | 1 10 5 Melee . | . . . Ram . | . . . Kick . | . . . Crush . | . . . Escape Stasis . | . . . Rewire . | . . . Trap . | . . . Miscellaneous . | . . . Route ------- -11/Scrapyard -10/Materials -10/Mines History --------- Turn | Location | Event 9 | -11/Scrapyard | Discovered new exit (range 13) 144 | -11/Scrapyard | Entered Materials 316 | -10/Materials | Build established: Mutant 444 | -10/Materials | Discovered new exit (range 15) 489 | -10/Materials | Entered Mines 490 | -10/Mines | Met a Derelict testing a Signal Generator 495 | -10/Mines | Found Signal Generator 506 | -10/Mines | Assembled infested the area 522 | -10/Mines | Met a Derelict bent on vengeance 551 | -10/Mines | Core integrity fell below 50% 555 | -10/Mines | Core integrity fell below 20% 556 | -10/Mines | Destroyed by D-53 Grenadier with Mini Grenade Launcher Last Messages --------------- 00540_ Arm. Wheel destroyed. 00544_ The unstable cave ceiling collapses. 00546_ as-75724 destroyed. 00546_ as-20247 destroyed. 00547_ The unstable cave ceiling collapses. 00548_ Med. Laser destroyed. 00548_ Grenade Launcher destroyed. 00548_ U-05 Engineer lays Concrete. 00549_ The unstable cave ceiling collapses. 00549_ U-05 Engineer lays Concrete. 00550_ The unstable cave ceiling collapses. 00550_ Arm. Wheel destroyed. 00551_ U-05 Engineer lays Concrete. 00552_ Ion Engine destroyed. 00552_ Assault Rifle destroyed. 00552_ Seismic Detector destroyed. 00552_ U-05 Engineer lays Concrete. 00554_ The unstable cave ceiling collapses. 00554_ U-05 Engineer builds a Wall. 00555_ The unstable cave ceiling collapses. Map ----- +----------------------------------------------------+ | ????????????????????????????????????????? | | ????????????????????????????????????????? | | ????????????????????????????????????????? | | ????????????????????????????????????????? | | ????????????????????????????????????????? | | ????????????????????????????????????????? | | ????????????????????????????????????????? | | ????????????????????????????????????????? | | ????????????????????????????????????????? | | ???????????????????###??????????????????? | | ????????????#?????## #??###????????????? | | ??????????? #???# ## ##???????????? | | ??????????? #?## #???????????? | | ???????????# ## #???????????? | | ????????????# ????????????? | | ?????????##### ????????????? | | ????????## ##? ????????????? | | ???????## #??? #?????????????? | | ??????## ###### ##?????????????? | | ??????# ## ##????????????? | | ??????# # # ##???????????? | | ??????## # % #???????????? | | ???????#### # #???????????? | | ??????????# #???????????? | | ??????????# #???????????? | | ??????????# # @ d #????????????? | | ??????????## # d ##????????????? | | ???????????## #####?????????????? | | ????????????## ###????????????????? | | ?????????????# ##??????????????????? | | ?????????????###%* ???????????????????? | | ??????????????#u%! #??????????????????? | | ?????????????? = ??????????????????? | | ?????????????? ?????????????????? | | ?????????????? ????????????????? | | ?????????????? ##????????????????? | | ?????????????? ##?????????????????? | | ????????????? ##??????????????????? | | ????????????? t ###???????????????????? | | ?????????????## #??????????????????????? | | ??????????????? ???????????????????????? | | ????????????????????????????????????????? | | ????????????????????????????????????????? | | ????????????????????????????????????????? | | ????????????????????????????????????????? | | ????????????????????????????????????????? | | ????????????????????????????????????????? | | ????????????????????????????????????????? | | ????????????????????????????????????????? | | ????????????????????????????????????????? | +----------------------------------------------------+ Best States ------------- Heat Dissipation 25 Energy Generation 10 Energy Capacity 250 Matter Stores 300 Matter Capacity 300 Sight Range 16 Terrain Scan Density 10 Evasion (%) 40 Recoil Reduction 2 Item Schematics ----------------- None Robot Schematics ------------------ None Fabricated ------------ Nothing Alien Tech Used ----------------- None Achievements -------------- None Challenges ------------ None Game ------ Seed CloakingBehemothMagmablaster Manual? 0 Play Time 00:07:06 Cumulative 42.6 hours Start 2024.07.06 @ 21:01:14 End 2024.07.06 @ 21:07:47 Sessions 1 Manual Loads 0 Difficulty Rogue Special Mode None Game No. 67 Rogue 67 Adventurer 0 Explorer 0 Win Type - Total 0 Types 0/0/0/0/0/0/0/0/0 Lore% 26 Gallery% 28 Achievement% 30 Wizard Run 0 Options --------- Layout 1 ASCII 0 Keyboard 0 Movement Arrows Keybinds 0 Fullscreen 1 Font 24/Crisp Map View 50x40 Zoom Use 0% Tactical HUD 1 Map Filters NONE Filters NONE Steam 1 RUN: 3443fdde-c6b9-4921-9f0f-8895df2cb325